[Event "36th German Seniors-ch-65 2024"]
[Site "Bad Wildungen"]
[Date "2024.08.30"]
[Round "8.17"]
[White "Schulz, Michael"]
[Black "Hanisch, Friedrich"]
[Result "1/2-1/2"]
[ECO "D10"]
[WhiteElo "2109"]
[BlackElo "2012"]
[Annotator "RC"]
[PlyCount "111"]
[EventDate "2024.08.22"]
[EventType "swiss"]
[EventCountry "GER"]
[SourceTitle "playchess.com"]
[Source "ChessBase"]
[SourceQuality "1"]
[TimeControl "40/5400+30:1800+30"]

1. d4 {[%emt 0:00:08]} d5 {[%emt 0:00:19]} 2. Bf4 {[%emt 0:00:07]} Nf6 {[%emt 0:00:20]} 3. e3 {[%emt 0:00:06]} Bf5 {[%emt 0:00:24]} 4. c4 {[%emt 0:00:15]} c6 {[%emt 0:01:23]} 5. Nc3 {[%emt 0:00:05]} e6 {[%emt 0:01:23]} 6. Qb3 {[%emt 0:00:09]} Qb6 {[%emt 0:05:17]} 7. c5 {[%emt 0:00:06]} Qxb3 {[%emt 0:00:34]} 8. axb3 {[%emt 0:00:03]} Nbd7 {[%emt 0:02:26]} 9. b4 {[%emt 0:00:06]} Nh5 {[%emt 0:11:07]} 10. Nf3 {[%emt 0:03:43]} Nxf4 {[%emt 0:02:32]} 11. exf4 {[%emt 0:00:05]} Be7 {[%emt 0:00:36]} 12. b5 {[%emt 0:01:18]} O-O {[%emt 0:00:31]} 13. b4 {[%emt 0:00:44]} f6 {[%emt 0:05:59]} 14. bxc6 {[%emt 0:03:12]} bxc6 {[%emt 0:00:18]} 15. b5 {[%emt 0:00:09]} Rfc8 {[%emt 0:09:11]} 16. bxc6 {[%emt 0:01:40]} Rxc6 {[%emt 0:00:38]} 17. Bb5 {[%emt 0:00:22]} Rc7 {[%emt 0:00:27]} 18. O-O {[%emt 0:00:19]} a5 {[%emt 0:13:41]} 19. Rfe1 {[%emt 0:00:34]} Kf7 {[%emt 0:05:29]} 20. Nh4 {[%emt 0:02:54]} g6 {[%emt 0:06:16]} 21. h3 {[%emt 0:05:54]} h5 {[%emt 0:03:19]} 22. Ra2 {[%emt 0:02:50]} Nxc5 {[%emt 0:05:59]} 23. Nxf5 {[%emt 0:02:11]} gxf5 {[%emt 0:00:24]} 24. dxc5 {[%emt 0:04:33]} Rxc5 {[%emt 0:00:11]} 25. Bd7 {[%emt 0:00:45]} Rxc3 {[%emt 0:01:15]} 26. Bxe6+ {[%emt 0:00:05]} Kf8 {[%emt 0:00:30]} 27. Bxd5 {[%emt 0:00:17]} Ra7 {[%emt 0:02:27]} 28. Rb1 {[%emt 0:02:35]} a4 {[%emt 0:01:08]} 29. Be6 {[%emt 0:05:07]} a3 {[%emt 0:01:49]} 30. Rb8+ {[%emt 0:03:48]} Kg7 {[%emt 0:00:36]} 31. Rg8+ {[%emt 0:01:17]} Kh7 {[%emt 0:01:43]} 32. Re8 {[%emt 0:00:09]} Kg7 {[%emt 0:02:18]} 33. Bxf5 {[%emt 0:02:37]} Rb3 {[%emt 0:01:16]} 34. Rc8 {[%emt 0:11:48]} Rb2 {[%emt 0:00:56]} 35. Rc2 {[%emt 0:04:56]} Rxc2 {[%emt 0:02:17]} 36. Bxc2 {[%emt 0:00:53]} h4 {[%emt 0:00:54]} 37. Bb3 {[%emt 0:03:05]} Rb7 {[%emt 0:01:56]} 38. Be6 {[%emt 0:03:45]} Bd6 {[%emt 0:02:52]} 39. g3 {[%emt 0:00:18]} hxg3 {[%emt 0:01:39]} 40. fxg3 {[%emt 0:00:04]} Re7 {[%emt 0:03:30]} 41. Bd5 {[%emt 0:33:50]} Re3 {[%emt 0:32:40]} 42. Kg2 {[%emt 0:00:31]} Rd3 {[%emt 0:01:18]} 43. Be4 {[%emt 0:01:41]} Rc3 {[%emt 0:00:00]} 44. Rd2 {[%emt 0:00:00]} Bc5 {[%emt 0:00:00]} 45. h4 {[%emt 0:00:00]} Be7 {[%emt 0:00:00]} 46. Rd7 {[%emt 0:00:00]} Kf8 {[%emt 0:00:00]} 47. Rd2 {[%emt 0:00:00]} Bb4 {[%emt 0:00:00]} 48. Rd8+ {[%emt 0:00:00]} Ke7 {[%emt 0:00:00]} 49. Ra8 {[%emt 0:00:00]} Rb3 {[%emt 0:00:00]} 50. Bd5 {[%emt 0:00:00]} Rd3 {[%emt 0:00:00]} 51. Bg8 {[%emt 0:00:00]} Be1 {[%emt 0:00:00]} 52. Kf1 {[%emt 0:00:00]} Bxg3 {[%emt 0:00:00]} 53. Ke2 {[%emt 0:00:00]} Rc3 {[%emt 0:00:00]} 54. Kd2 {[%emt 0:00:00]} Rf3 {[%emt 0:00:00]} 55. Ke2 {[%emt 0:00:00]} Rxf4 {[%emt 0:00:00]} 56. Rxa3 {[%emt 0:39:26]} 1/2-1/2

[Event "36th German Seniors-ch-65 2024"]
[Site "Bad Wildungen"]
[Date "2024.08.30"]
[Round "8.18"]
[White "Gollasch, Theo-Heinz"]
[Black "Krueger, Erich"]
[Result "1/2-1/2"]
[ECO "D76"]
[WhiteElo "2006"]
[BlackElo "2085"]
[Annotator "RC"]
[PlyCount "38"]
[EventDate "2024.08.22"]
[EventType "swiss"]
[EventCountry "GER"]
[SourceTitle "playchess.com"]
[Source "ChessBase"]
[SourceQuality "1"]
[TimeControl "40/5400+30:1800+30"]

1. Nf3 {[%emt 0:03:22]} Nf6 {[%emt 0:00:12]} 2. g3 {[%emt 0:00:05]} g6 {[%emt 0:00:10]} 3. Bg2 {[%emt 0:00:21]} Bg7 {[%emt 0:00:07]} 4. d4 {[%emt 0:00:14]} O-O {[%emt 0:01:15]} 5. c4 {[%emt 0:00:08]} d5 {[%emt 0:00:39]} 6. cxd5 {[%emt 0:01:30]} Nxd5 {[%emt 0:00:11]} 7. O-O {[%emt 0:00:20]} Nb6 {[%emt 0:04:17]} 8. Nc3 {[%emt 0:01:22]} Nc6 {[%emt 0:00:52]} 9. e3 {[%emt 0:02:21]} Bg4 {[%emt 0:10:24]} 10. h3 {[%emt 0:01:19]} Be6 {[%emt 0:05:06]} 11. b3 {[%emt 0:04:22]} Nd5 {[%emt 0:04:50]} 12. Bb2 {[%emt 0:02:01]} Nxc3 {[%emt 0:00:26]} 13. Bxc3 {[%emt 0:00:03]} Bd5 {[%emt 0:03:04]} 14. Qe2 {[%emt 0:01:21]} Be4 {[%emt 0:04:35]} 15. Rac1 {[%emt 0:03:47]} e6 {[%emt 0:01:06]} 16. Rfd1 {[%emt 0:01:51]} Qe7 {[%emt 0:01:40]} 17. Bf1 {[%emt 0:01:07]} f5 {[%emt 0:06:12]} 18. Nd2 {[%emt 0:05:20]} Bd5 {[%emt 0:01:07]} 19. f4 {[%emt 1:09:06]} Qd8 {[%emt 0:53:47]} 1/2-1/2

[Event "36th German Seniors-ch-65 2024"]
[Site "Bad Wildungen"]
[Date "2024.08.30"]
[Round "8.19"]
[White "Schmidt, Gerhard"]
[Black "Vasiljev, Jurij"]
[Result "1/2-1/2"]
[ECO "B75"]
[WhiteElo "2088"]
[BlackElo "1993"]
[Annotator "RC"]
[PlyCount "57"]
[EventDate "2024.08.22"]
[EventType "swiss"]
[EventCountry "GER"]
[SourceTitle "playchess.com"]
[Source "ChessBase"]
[SourceQuality "1"]
[TimeControl "40/5400+30:1800+30"]

1. e4 {[%emt 0:00:12]} c5 {[%emt 0:00:12]} 2. Nf3 {[%emt 0:00:10]} d6 {[%emt 0:00:12]} 3. d4 {[%emt 0:00:15]} cxd4 {[%emt 0:00:14]} 4. Nxd4 {[%emt 0:00:18]} Nf6 {[%emt 0:00:09]} 5. Nc3 {[%emt 0:00:12]} a6 {[%emt 0:00:23]} 6. f3 {[%emt 0:00:21]} g6 {[%emt 0:01:33]} 7. Be3 {[%emt 0:00:28]} Bg7 {[%emt 0:00:35]} 8. Qd2 {[%emt 0:00:23]} Nc6 {[%emt 0:00:38]} 9. g4 {[%emt 0:03:35]} h5 {[%emt 0:04:41]} 10. g5 {[%emt 0:01:04]} Nd7 {[%emt 0:00:15]} 11. f4 {[%emt 0:02:21]} Nxd4 {[%emt 0:02:24]} 12. Bxd4 {[%emt 0:00:15]} e5 {[%emt 0:00:39]} 13. Be3 {[%emt 0:01:28]} exf4 {[%emt 0:00:24]} 14. Bxf4 {[%emt 0:00:28]} Ne5 {[%emt 0:00:11]} 15. O-O-O {[%emt 0:08:29]} Bg4 {[%emt 0:01:56]} 16. Be2 {[%emt 0:02:12]} Bxe2 {[%emt 0:03:07]} 17. Qxe2 {[%emt 0:01:12]} O-O {[%emt 0:00:50]} 18. Kb1 {[%emt 0:12:34]} Rc8 {[%emt 0:02:24]} 19. Nd5 {[%emt 0:01:11]} Nc4 {[%emt 0:05:02]} 20. Bc1 {[%emt 0:01:31]} Re8 {[%emt 0:02:02]} 21. Rhf1 {[%emt 0:03:07]} Re6 {[%emt 0:06:14]} 22. b3 {[%emt 0:21:58]} Nb6 {[%emt 0:01:02]} 23. Qf2 {[%emt 0:09:48]} Nxd5 {[%emt 0:03:56]} 24. Qxf7+ {[%emt 0:00:48]} Kh8 {[%emt 0:00:18]} 25. exd5 {[%emt 0:01:24]} Re2 {[%emt 0:00:43]} 26. Qxg6 {[%emt 0:02:06]} Rcxc2 {[%emt 0:06:33]} 27. Qxh5+ {[%emt 0:12:33]} Kg8 {[%emt 0:00:11]} 28. Qf7+ {[%emt 0:04:37]} Kh8 {[%emt 0:00:14]} 29. Qh5+ {[%emt 0:00:00]} 1/2-1/2

[Event "36th German Seniors-ch-65 2024"]
[Site "Bad Wildungen"]
[Date "2024.08.30"]
[Round "8.20"]
[White "Kuempers, Ulrich"]
[Black "Haubt, Georg"]
[Result "0-1"]
[ECO "D93"]
[WhiteElo "1991"]
[BlackElo "2063"]
[Annotator "RC"]
[PlyCount "33"]
[EventDate "2024.08.22"]
[EventType "swiss"]
[EventCountry "GER"]
[SourceTitle "playchess.com"]
[Source "ChessBase"]
[SourceQuality "1"]
[TimeControl "40/5400+30:1800+30"]

1. d4 {[%emt 0:00:05]} Nf6 {[%emt 0:00:11]} 2. c4 {[%emt 0:00:09]} g6 {[%emt 0:00:11]} 3. Nc3 {[%emt 0:00:09]} d5 {[%emt 0:00:16]} 4. Bf4 {[%emt 0:00:33]} c6 {[%emt 0:02:32]} 5. e3 {[%emt 0:00:31]} Bg7 {[%emt 0:01:11]} 6. Qb3 {[%emt 0:03:59]} O-O {[%emt 0:01:39]} 7. Nf3 {[%emt 0:00:07]} Qc7 {[%emt 0:02:16]} 8. Nd2 {[%emt 0:15:45]} Nbd7 {[%emt 0:04:52]} 9. cxd5 {[%emt 0:02:26]} cxd5 {[%emt 0:05:09]} 10. Be2 {[%emt 0:04:22]} a6 {[%emt 0:01:55]} 11. O-O {[%emt 1:07:54]} e6 12. Rfc1 Re8 13. Nf3 Bf8 14. Ne5 {[%emt 0:00:00]} Nxe5 {[%emt 0:05:16]} 15. Bxe5 {[%emt 0:02:00]} Nd7 16. Bg3 {[%emt 0:00:00]} Qd8 {[%emt 0:13:21]} 17. Be5 {[%emt 0:00:00]} 0-1

[Event "36th German Seniors-ch-65 2024"]
[Site "Bad Wildungen"]
[Date "2024.08.30"]
[Round "8.21"]
[White "Kuhn, Gerd"]
[Black "Ehlert, Horst"]
[Result "1-0"]
[ECO "A46"]
[WhiteElo "2063"]
[BlackElo "1951"]
[Annotator "RC"]
[PlyCount "79"]
[EventDate "2024.08.22"]
[EventType "swiss"]
[EventCountry "GER"]
[SourceTitle "playchess.com"]
[Source "ChessBase"]
[SourceQuality "1"]
[TimeControl "40/5400+30:1800+30"]

1. d4 {[%emt 0:00:08]} Nf6 {[%emt 0:01:11]} 2. Nf3 {[%emt 0:00:23]} e6 {[%emt 0:00:36]} 3. Bf4 {[%emt 0:00:23]} c5 {[%emt 0:07:10]} 4. e3 {[%emt 0:03:42]} Qb6 {[%emt 0:06:49]} 5. Qc1 {[%emt 0:02:35]} d5 {[%emt 0:04:56]} 6. Nbd2 {[%emt 0:01:55]} Be7 {[%emt 0:06:50]} 7. h3 {[%emt 0:00:58]} O-O {[%emt 0:02:03]} 8. c3 {[%emt 0:01:07]} Bd7 {[%emt 0:01:30]} 9. a4 {[%emt 0:01:08]} Nc6 {[%emt 0:14:12]} 10. Bd3 {[%emt 0:00:27]} Rac8 {[%emt 0:01:15]} 11. Qb1 {[%emt 0:04:01]} Rfd8 {[%emt 0:12:09]} 12. g4 {[%emt 0:02:02]} g6 {[%emt 0:04:17]} 13. Ne5 {[%emt 0:06:37]} a5 {[%emt 0:05:22]} 14. Ndf3 {[%emt 0:11:28]} Be8 {[%emt 0:04:05]} 15. h4 {[%emt 0:06:21]} Ne4 {[%emt 0:04:24]} 16. g5 {[%emt 0:00:25]} Bd6 {[%emt 0:07:16]} 17. Nh2 {[%emt 0:07:19]} cxd4 {[%emt 0:01:49]} 18. Nxc6 {[%emt 0:12:33]} Rxc6 {[%emt 0:03:04]} 19. Bxd6 {[%emt 0:00:22]} Nxd6 {[%emt 0:01:31]} 20. exd4 {[%emt 0:00:29]} Nc4 {[%emt 0:02:14]} 21. Ng4 {[%emt 0:07:38]} Kg7 {[%emt 0:02:15]} 22. Nf6 {[%emt 0:02:18]} Rcc8 {[%emt 0:02:16]} 23. b3 {[%emt 0:07:25]} Nd6 {[%emt 0:00:14]} 24. Qb2 {[%emt 0:00:18]} h5 {[%emt 0:01:03]} 25. Rh3 {[%emt 0:03:52]} Qc7 {[%emt 0:01:01]} 26. Rc1 {[%emt 0:00:12]} Nf5 {[%emt 0:00:32]} 27. Bxf5 {[%emt 0:00:19]} exf5 {[%emt 0:00:04]} 28. Qd2 {[%emt 0:00:48]} Bc6 {[%emt 0:00:30]} 29. f4 {[%emt 0:00:26]} b5 {[%emt 0:00:27]} 30. axb5 {[%emt 0:01:15]} Bxb5 {[%emt 0:00:02]} 31. Kf2 {[%emt 0:01:26]} Qd6 {[%emt 0:02:06]} 32. Ra1 {[%emt 0:02:37]} Ra8 {[%emt 0:00:18]} 33. Rf3 {[%emt 0:00:29]} a4 {[%emt 0:00:52]} 34. bxa4 {[%emt 0:01:33]} Rxa4 {[%emt 0:00:24]} 35. Rxa4 {[%emt 0:00:35]} Bxa4 {[%emt 0:00:02]} 36. Kg3 {[%emt 0:02:59]} Bb5 {[%emt 0:00:25]} 37. Re3 {[%emt 0:00:39]} Qa6 {[%emt 0:00:46]} 38. Re5 {[%emt 0:03:18]} Qa1 {[%emt 0:00:15]} 39. Qe1 {[%emt 0:00:40]} Rc8 {[%emt 0:01:32]} 40. Qxa1 {[%emt 0:00:08]} 1-0

[Event "36th German Seniors-ch-65 2024"]
[Site "Bad Wildungen"]
[Date "2024.08.30"]
[Round "8.22"]
[White "Zuehlke, Burkhard"]
[Black "Westermann, Johannes"]
[Result "1-0"]
[ECO "D36"]
[WhiteElo "1999"]
[BlackElo "2055"]
[Annotator "RC"]
[PlyCount "51"]
[EventDate "2024.08.22"]
[EventType "swiss"]
[EventCountry "GER"]
[SourceTitle "playchess.com"]
[Source "ChessBase"]
[SourceQuality "1"]
[TimeControl "40/5400+30:1800+30"]

1. d4 {[%emt 0:00:02]} d5 {[%emt 0:00:08]} 2. c4 {[%emt 0:00:06]} e6 {[%emt 0:00:07]} 3. Nc3 {[%emt 0:00:19]} Nf6 {[%emt 0:00:24]} 4. cxd5 {[%emt 0:00:15]} exd5 {[%emt 0:00:10]} 5. Bg5 {[%emt 0:00:10]} c6 {[%emt 0:00:05]} 6. Qc2 {[%emt 0:00:30]} Be7 {[%emt 0:00:14]} 7. e3 {[%emt 0:00:10]} O-O {[%emt 0:00:51]} 8. Bd3 {[%emt 0:00:12]} Nbd7 {[%emt 0:00:06]} 9. Nge2 {[%emt 0:00:16]} Re8 {[%emt 0:00:08]} 10. O-O {[%emt 0:00:28]} Nf8 {[%emt 0:00:06]} 11. f3 {[%emt 0:02:31]} Be6 {[%emt 0:07:26]} 12. Rad1 {[%emt 0:00:30]} Rc8 {[%emt 0:01:01]} 13. Kh1 {[%emt 0:01:38]} a6 {[%emt 0:06:37]} 14. a3 {[%emt 0:19:57]} a5 {[%emt 0:08:04]} 15. Na4 {[%emt 0:05:46]} N6d7 {[%emt 0:00:43]} 16. Bf4 {[%emt 0:07:05]} Bg5 {[%emt 0:19:41]} 17. Bxg5 {[%emt 0:02:00]} Qxg5 {[%emt 0:00:35]} 18. f4 {[%emt 0:00:07]} Qh6 {[%emt 0:04:22]} 19. f5 {[%emt 0:00:11]} b5 {[%emt 0:00:44]} 20. fxe6 {[%emt 0:04:48]} Rxe6 {[%emt 0:02:47]} 21. Nc5 {[%emt 0:00:19]} Nxc5 {[%emt 0:03:31]} 22. dxc5 {[%emt 0:07:24]} Rxe3 {[%emt 0:03:33]} 23. Nd4 {[%emt 0:00:22]} g6 {[%emt 0:00:20]} 24. Qf2 {[%emt 0:01:25]} Re7 {[%emt 0:02:46]} 25. Qf6 {[%emt 0:03:41]} Rcc7 {[%emt 0:02:15]} 26. Nf5 {[%emt 0:00:11]} 1-0

[Event "36th German Seniors-ch-65 2024"]
[Site "Bad Wildungen"]
[Date "2024.08.31"]
[Round "9.1"]
[White "Juhnke, Juergen"]
[Black "Vatter, Hans-Joachim"]
[Result "1-0"]
[ECO "C07"]
[WhiteElo "2259"]
[BlackElo "2212"]
[Annotator "RC"]
[PlyCount "76"]
[EventDate "2024.08.22"]
[EventType "swiss"]
[EventCountry "GER"]
[SourceTitle "playchess.com"]
[Source "ChessBase"]
[SourceQuality "1"]
[TimeControl "40/5400+30:1800+30"]

1. e4 {[%emt 0:00:03]} e6 {[%emt 0:02:29]} 2. d4 {[%emt 0:00:18]} d5 {[%emt 0:00:54]} 3. Nd2 {[%emt 0:00:05]} c5 {[%emt 0:00:05]} 4. exd5 {[%emt 0:00:20]} Qxd5 {[%emt 0:00:15]} 5. Ngf3 {[%emt 0:01:16]} cxd4 {[%emt 0:03:54]} 6. Bc4 {[%emt 0:00:30]} Qd6 {[%emt 0:00:02]} 7. Qe2 {[%emt 0:00:26]} Nc6 {[%emt 0:01:39]} 8. Nb3 {[%emt 0:00:56]} Nf6 {[%emt 0:01:17]} 9. Bg5 {[%emt 0:00:50]} Be7 {[%emt 0:06:13]} 10. O-O-O {[%emt 0:01:01]} Nd5 {[%emt 0:04:03]} 11. Bxd5 {[%emt 0:02:41]} Bxg5+ {[%emt 0:01:12]} 12. Nxg5 {[%emt 0:00:07]} Qxd5 {[%emt 0:00:09]} 13. Nf3 {[%emt 0:01:58]} O-O {[%emt 0:05:39]} 14. c4 {[%emt 0:02:26]} Qh5 {[%emt 0:16:55]} 15. Nbxd4 {[%emt 0:00:43]} Nxd4 {[%emt 0:00:20]} 16. Rxd4 {[%emt 0:00:47]} Qa5 {[%emt 0:00:39]} 17. Kb1 {[%emt 0:00:58]} f6 {[%emt 0:00:17]} 18. Rhd1 {[%emt 0:03:34]} e5 {[%emt 0:02:14]} 19. Rd5 {[%emt 0:00:19]} Bf5+ {[%emt 0:00:14]} 20. Ka1 {[%emt 0:00:08]} Qc7 {[%emt 0:00:26]} 21. b3 {[%emt 0:01:55]} Rfe8 {[%emt 0:05:15]} 22. Qe3 {[%emt 0:10:13]} b6 {[%emt 0:02:53]} 23. Qd2 {[%emt 0:08:28]} Re7 {[%emt 0:06:29]} 24. Rd6 {[%emt 0:03:19]} Rae8 {[%emt 0:01:35]} 25. h3 {[%emt 0:00:46]} Qc5 {[%emt 0:03:37]} 26. g4 {[%emt 0:03:14]} Bc8 {[%emt 0:04:00]} 27. Nh4 {[%emt 0:05:44]} Be6 {[%emt 0:08:46]} 28. f3 {[%emt 0:01:57]} b5 {[%emt 0:00:58]} 29. cxb5 {[%emt 0:02:15]} Qxb5 {[%emt 0:00:23]} 30. g5 {[%emt 0:09:42]} f5 {[%emt 0:03:14]} 31. g6 {[%emt 0:00:34]} h6 {[%emt 0:02:19]} 32. Rd8 {[%emt 0:01:16]} f4 {[%emt 0:05:44]} 33. Qc3 {[%emt 0:02:31]} Bxh3 {[%emt 0:02:00]} 34. a4 {[%emt 0:02:20]} Qb6 {[%emt 0:04:34]} 35. R8d6 {[%emt 0:01:22]} Qf2 {[%emt 0:02:07]} 36. Qc4+ {[%emt 0:01:53]} Kh8 {[%emt 0:02:49]} 37. Qf7 {[%emt 0:02:44]} Rxf7 {[%emt 0:02:43]} 38. gxf7 {[%emt 0:00:09]} Rf8 {[%emt 0:00:18]} 1-0

[Event "36th German Seniors-ch-65 2024"]
[Site "Bad Wildungen"]
[Date "2024.08.31"]
[Round "9.2"]
[White "Rosen, Bernd"]
[Black "Podat, Vladimir"]
[Result "1/2-1/2"]
[ECO "A20"]
[WhiteElo "2245"]
[BlackElo "2157"]
[Annotator "RC"]
[PlyCount "46"]
[EventDate "2024.08.22"]
[EventType "swiss"]
[EventCountry "GER"]
[SourceTitle "playchess.com"]
[Source "ChessBase"]
[SourceQuality "1"]
[TimeControl "40/5400+30:1800+30"]

1. c4 {[%emt 0:00:03]} e5 {[%emt 0:00:11]} 2. g3 {[%emt 0:00:08]} c6 {[%emt 0:00:14]} 3. Nf3 {[%emt 0:00:57]} e4 {[%emt 0:00:10]} 4. Nd4 {[%emt 0:00:04]} d5 {[%emt 0:00:06]} 5. cxd5 {[%emt 0:00:26]} Qxd5 {[%emt 0:00:07]} 6. Nc2 {[%emt 0:00:19]} Nf6 {[%emt 0:00:08]} 7. Nc3 {[%emt 0:01:23]} Qe5 {[%emt 0:00:20]} 8. d3 {[%emt 0:05:47]} exd3 {[%emt 0:03:23]} 9. Qxd3 {[%emt 0:00:04]} Na6 {[%emt 0:13:35]} 10. Bf4 {[%emt 0:03:30]} Qh5 {[%emt 0:05:15]} 11. Bg2 {[%emt 0:19:33]} Be7 {[%emt 0:08:06]} 12. Bd6 {[%emt 0:05:37]} Bxd6 {[%emt 0:05:12]} 13. Qxd6 {[%emt 0:00:06]} Qc5 {[%emt 0:00:03]} 14. Qxc5 {[%emt 0:01:42]} Nxc5 {[%emt 0:00:06]} 15. b4 {[%emt 0:00:48]} Ne6 {[%emt 0:00:12]} 16. e4 {[%emt 0:03:03]} c5 {[%emt 0:09:19]} 17. e5 {[%emt 0:07:11]} cxb4 {[%emt 0:02:39]} 18. Nxb4 {[%emt 0:06:03]} Ng4 {[%emt 0:01:18]} 19. Ncd5 {[%emt 0:06:18]} Nxe5 {[%emt 0:05:09]} 20. f4 {[%emt 0:00:40]} Nc6 {[%emt 0:00:21]} 21. Nxc6 {[%emt 0:07:27]} bxc6 {[%emt 0:00:06]} 22. Nb4 {[%emt 0:00:02]} Bd7 {[%emt 0:02:05]} 23. Rd1 {[%emt 0:03:05]} Rb8 {[%emt 0:04:06]} 1/2-1/2

[Event "36th German Seniors-ch-65 2024"]
[Site "Bad Wildungen"]
[Date "2024.08.31"]
[Round "9.3"]
[White "Buchal, Stephan"]
[Black "Kaeding, Rainer"]
[Result "1/2-1/2"]
[ECO "A20"]
[WhiteElo "2215"]
[BlackElo "2116"]
[Annotator "RC"]
[PlyCount "50"]
[EventDate "2024.08.22"]
[EventType "swiss"]
[EventCountry "GER"]
[SourceTitle "playchess.com"]
[Source "ChessBase"]
[SourceQuality "1"]
[TimeControl "40/5400+30:1800+30"]

1. c4 {[%emt 0:00:11]} e5 {[%emt 0:00:23]} 2. g3 {[%emt 0:00:15]} Nf6 {[%emt 0:00:26]} 3. Bg2 {[%emt 0:00:17]} c6 {[%emt 0:00:31]} 4. Nf3 {[%emt 0:00:52]} e4 {[%emt 0:00:41]} 5. Nd4 {[%emt 0:00:13]} d5 {[%emt 0:00:27]} 6. d3 {[%emt 0:00:47]} Bb4+ {[%emt 0:01:53]} 7. Nc3 {[%emt 0:00:31]} c5 {[%emt 0:03:54]} 8. Nc2 {[%emt 0:03:21]} Bxc3+ {[%emt 0:01:38]} 9. bxc3 {[%emt 0:00:13]} exd3 {[%emt 0:10:16]} 10. Qxd3 {[%emt 0:01:44]} Be6 {[%emt 0:16:48]} 11. Bg5 {[%emt 0:05:02]} O-O {[%emt 0:04:04]} 12. cxd5 {[%emt 0:04:28]} Bg4 {[%emt 0:04:18]} 13. e4 {[%emt 0:09:33]} Nbd7 {[%emt 0:01:35]} 14. f3 {[%emt 0:02:21]} Ne5 {[%emt 0:01:17]} 15. Qe2 {[%emt 0:01:47]} Bd7 {[%emt 0:08:09]} 16. O-O {[%emt 0:01:58]} Qa5 {[%emt 0:00:46]} 17. f4 {[%emt 0:06:17]} Bb5 {[%emt 0:00:41]} 18. Qd2 {[%emt 0:13:39]} Bxf1 {[%emt 0:03:52]} 19. Rxf1 {[%emt 0:11:51]} Nc4 {[%emt 0:00:59]} 20. Qd3 {[%emt 0:02:22]} Nb2 {[%emt 0:01:46]} 21. Qf3 {[%emt 0:04:23]} Qxa2 {[%emt 0:04:03]} 22. e5 {[%emt 0:04:31]} Nc4 {[%emt 0:05:54]} 23. Qd3 {[%emt 0:01:44]} Nb2 {[%emt 0:01:00]} 24. Qf3 {[%emt 0:02:17]} Nc4 {[%emt 0:00:33]} 25. Qd3 {[%emt 0:00:10]} Nb2 {[%emt 0:00:27]} 1/2-1/2

[Event "36th German Seniors-ch-65 2024"]
[Site "Bad Wildungen"]
[Date "2024.08.31"]
[Round "9.4"]
[White "Brueggemann, Joachim"]
[Black "Okrajek, Alexander"]
[Result "1-0"]
[ECO "B15"]
[WhiteElo "2267"]
[BlackElo "2172"]
[Annotator "RC"]
[PlyCount "76"]
[EventDate "2024.08.22"]
[EventType "swiss"]
[EventCountry "GER"]
[SourceTitle "playchess.com"]
[Source "ChessBase"]
[SourceQuality "1"]
[TimeControl "40/5400+30:1800+30"]

1. e4 {[%emt 0:00:02]} c6 {[%emt 0:00:45]} 2. d4 {[%emt 0:00:09]} d5 {[%emt 0:00:06]} 3. Nc3 {[%emt 0:00:06]} dxe4 {[%emt 0:00:37]} 4. Nxe4 {[%emt 0:00:05]} Nf6 {[%emt 0:00:38]} 5. Nxf6+ {[%emt 0:00:10]} exf6 {[%emt 0:00:15]} 6. c3 {[%emt 0:00:07]} Bd6 {[%emt 0:00:39]} 7. Bd3 {[%emt 0:00:10]} O-O {[%emt 0:00:51]} 8. Qc2 {[%emt 0:00:03]} Re8+ {[%emt 0:00:24]} 9. Ne2 {[%emt 0:00:06]} h5 {[%emt 0:01:32]} 10. O-O {[%emt 0:00:14]} h4 {[%emt 0:02:03]} 11. Bd2 {[%emt 0:02:12]} h3 {[%emt 0:02:11]} 12. Rfe1 {[%emt 0:00:05]} Nd7 {[%emt 0:05:54]} 13. gxh3 {[%emt 0:12:04]} Nf8 {[%emt 0:01:15]} 14. Bf5 {[%emt 0:00:35]} Qc7 {[%emt 0:08:28]} 15. Ng3 {[%emt 0:00:26]} Bxf5 {[%emt 0:01:43]} 16. Qxf5 {[%emt 0:00:07]} Ng6 {[%emt 0:05:18]} 17. Qg4 {[%emt 0:01:20]} Bf4 {[%emt 0:03:44]} 18. Be3 {[%emt 0:03:06]} c5 {[%emt 0:09:51]} 19. h4 {[%emt 0:00:20]} cxd4 {[%emt 0:00:17]} 20. cxd4 {[%emt 0:00:27]} Bxe3 {[%emt 0:11:26]} 21. fxe3 {[%emt 0:00:45]} Qc6 {[%emt 0:06:38]} 22. Rac1 {[%emt 0:05:50]} Qe6 {[%emt 0:00:28]} 23. Qxe6 {[%emt 0:03:34]} Rxe6 {[%emt 0:00:45]} 24. h5 {[%emt 0:00:10]} Nh4 {[%emt 0:00:48]} 25. Kf2 {[%emt 0:00:14]} Rb6 {[%emt 0:02:52]} 26. Re2 {[%emt 0:00:51]} a5 {[%emt 0:01:17]} 27. Rc4 {[%emt 0:02:54]} Rb4 {[%emt 0:01:28]} 28. Rec2 {[%emt 0:01:27]} Ra6 {[%emt 0:04:44]} 29. Rxb4 {[%emt 0:01:58]} axb4 {[%emt 0:01:05]} 30. Rc4 {[%emt 0:00:02]} Rb6 {[%emt 0:03:24]} 31. d5 {[%emt 0:01:11]} g5 {[%emt 0:00:15]} 32. e4 {[%emt 0:00:24]} Kg7 {[%emt 0:04:29]} 33. Ke3 {[%emt 0:10:59]} f5 {[%emt 0:04:26]} 34. exf5 {[%emt 0:07:18]} Ng2+ {[%emt 0:04:29]} 35. Kd4 {[%emt 0:02:09]} Nf4 {[%emt 0:02:03]} 36. Ne4 {[%emt 0:00:23]} Nxh5 {[%emt 0:02:41]} 37. Kc5 {[%emt 0:02:56]} Ra6 {[%emt 0:00:36]} 38. Rxb4 {[%emt 0:00:09]} Ra8 {[%emt 0:09:05]} 1-0

[Event "36th German Seniors-ch-65 2024"]
[Site "Bad Wildungen"]
[Date "2024.08.31"]
[Round "9.5"]
[White "Klundt, Klaus"]
[Black "Koehler, Gerhard"]
[Result "1-0"]
[ECO "D42"]
[WhiteElo "2264"]
[BlackElo "2210"]
[Annotator "RC"]
[PlyCount "53"]
[EventDate "2024.08.22"]
[EventType "swiss"]
[EventCountry "GER"]
[SourceTitle "playchess.com"]
[Source "ChessBase"]
[SourceQuality "1"]
[TimeControl "40/5400+30:1800+30"]

1. e4 {[%emt 0:00:02]} c6 {[%emt 0:00:13]} 2. d4 {[%emt 0:00:42]} d5 {[%emt 0:00:05]} 3. exd5 {[%emt 0:00:12]} cxd5 {[%emt 0:00:15]} 4. c4 {[%emt 0:00:03]} Nf6 {[%emt 0:00:17]} 5. Nc3 {[%emt 0:00:09]} e6 {[%emt 0:01:19]} 6. Nf3 {[%emt 0:00:28]} Be7 {[%emt 0:00:23]} 7. cxd5 {[%emt 0:00:36]} Nxd5 {[%emt 0:00:56]} 8. Bd3 {[%emt 0:00:24]} Nc6 {[%emt 0:01:36]} 9. O-O {[%emt 0:00:23]} O-O {[%emt 0:07:35]} 10. Re1 {[%emt 0:00:37]} Bf6 {[%emt 0:07:20]} 11. Be4 {[%emt 0:02:33]} Nxc3 {[%emt 0:05:21]} 12. bxc3 {[%emt 0:00:09]} Qc7 {[%emt 0:00:32]} 13. Qd3 {[%emt 0:05:21]} h6 {[%emt 0:03:26]} 14. Rb1 {[%emt 0:03:42]} Rd8 {[%emt 0:16:09]} 15. Qe2 {[%emt 0:10:40]} Be7 {[%emt 0:09:24]} 16. Bc2 {[%emt 0:08:55]} Bf8 {[%emt 0:04:57]} 17. Qe4 {[%emt 0:02:25]} g6 {[%emt 0:07:25]} 18. Bf4 {[%emt 0:01:49]} Qa5 {[%emt 0:00:48]} 19. Ne5 {[%emt 0:03:08]} Ne7 {[%emt 0:13:41]} 20. Qf3 {[%emt 0:06:39]} Nf5 {[%emt 0:00:56]} 21. Ng4 {[%emt 0:04:58]} Qxa2 {[%emt 0:02:24]} 22. Bxf5 {[%emt 0:05:53]} exf5 {[%emt 0:02:52]} 23. Nxh6+ {[%emt 0:03:21]} Bxh6 {[%emt 0:00:29]} 24. Bxh6 {[%emt 0:00:04]} Qd5 {[%emt 0:04:39]} 25. Qf4 {[%emt 0:02:33]} Bd7 {[%emt 0:02:12]} 26. Bg5 {[%emt 0:01:50]} Re8 {[%emt 0:05:15]} 27. Bf6 {[%emt 0:36:24]} 1-0